[Event "Titled Tuesday Blitz March 21 Early 2023"]
[White "Bachmann, Axel"]
[Black "Vogel, Roven"]
[WhiteFideId "3700488"]
[BlackFideId "12908088"]
[WhiteElo "2605"]
[BlackElo "2518"]
[Result "1-0"]
[Round "11"]
[TimeControl "180+2"]
[Date "2023.03.21"]
[WhiteClock "0:00:28"]
[BlackClock "0:00:10"]

1. c4 {[%clk 0:02:59]}  c6 {[%clk 0:02:59]} 2. Nf3 {[%clk 0:02:56]}  d5 {[%clk 0:03:00]} 3. e3 {[%clk 0:02:56]}  Nf6 {[%clk 0:03:00]} 4. Nc3 {[%clk 0:02:57]}  e6 {[%clk 0:03:00]} 5. b3 {[%clk 0:02:57]}  Bd6 {[%clk 0:03:00]} 6. Bb2 {[%clk 0:02:57]}  O-O {[%clk 0:02:59]} 7. Be2 {[%clk 0:02:58]}  e5 {[%clk 0:02:56]} 8. cxd5 {[%clk 0:02:57]}  cxd5 {[%clk 0:02:57]} 9. Nb5 {[%clk 0:02:58]}  Nc6 {[%clk 0:02:57]} 10. Nxd6 {[%clk 0:02:58]}  Qxd6 {[%clk 0:02:58]} 11. d4 {[%clk 0:02:59]}  e4 {[%clk 0:02:58]} 12. Ne5 {[%clk 0:02:59]}  Be6 {[%clk 0:02:55]} 13. O-O {[%clk 0:02:53]}  Nd7 {[%clk 0:02:55]} 14. Nxc6 {[%clk 0:02:52]}  Qxc6 {[%clk 0:02:38]} 15. Qd2 {[%clk 0:02:50]}  Qd6 {[%clk 0:02:35]} 16. Rfc1 {[%clk 0:02:46]}  Rfc8 {[%clk 0:02:35]} 17. Qa5 {[%clk 0:02:43]}  Qb6 {[%clk 0:02:35]} 18. Qa4 {[%clk 0:02:23]}  Nf6 {[%clk 0:02:32]} 19. Ba3 {[%clk 0:02:22]}  Bd7 {[%clk 0:02:31]} 20. Qb4 {[%clk 0:02:22]}  Qxb4 {[%clk 0:02:31]} 21. Bxb4 {[%clk 0:02:23]}  Rxc1+ {[%clk 0:02:22]} 22. Rxc1 {[%clk 0:02:24]}  Rc8 {[%clk 0:02:22]} 23. Rxc8+ {[%clk 0:02:24]}  Bxc8 {[%clk 0:02:23]} 24. f3 {[%clk 0:02:24]}  Bf5 {[%clk 0:02:11]} 25. Be7 {[%clk 0:02:18]}  exf3 {[%clk 0:02:04]} 26. gxf3 {[%clk 0:02:19]}  Bb1 {[%clk 0:02:04]} 27. a3 {[%clk 0:02:11]}  Nd7 {[%clk 0:01:57]} 28. Bb5 {[%clk 0:02:07]}  Nb8 {[%clk 0:01:58]} 29. Bc5 {[%clk 0:01:42]}  a6 {[%clk 0:01:57]} 30. Be8 {[%clk 0:01:38]}  Bc2 {[%clk 0:01:45]} 31. b4 {[%clk 0:01:38]}  Bf5 {[%clk 0:01:45]} 32. Ba4 {[%clk 0:01:33]}  Nd7 {[%clk 0:01:19]} 33. Kf2 {[%clk 0:01:24]}  Be6 {[%clk 0:01:14]} 34. e4 {[%clk 0:01:22]}  b5 {[%clk 0:01:07]} 35. Bc2 {[%clk 0:01:10]}  g6 {[%clk 0:01:05]} 36. Ke3 {[%clk 0:01:09]}  Kg7 {[%clk 0:00:43]} 37. a4 {[%clk 0:01:09]}  f5 {[%clk 0:00:35]} 38. axb5 {[%clk 0:01:05]}  axb5 {[%clk 0:00:34]} 39. Bd3 {[%clk 0:00:47]}  fxe4 {[%clk 0:00:32]} 40. fxe4 {[%clk 0:00:47]}  dxe4 {[%clk 0:00:31]} 41. Bxb5 {[%clk 0:00:45]}  Nf6 {[%clk 0:00:31]} 42. Bc6 {[%clk 0:00:44]}  Ng4+ {[%clk 0:00:21]} 43. Kxe4 {[%clk 0:00:43]}  Nxh2 {[%clk 0:00:21]} 44. b5 {[%clk 0:00:43]}  Bh3 {[%clk 0:00:18]} 45. d5 {[%clk 0:00:41]}  Ng4 {[%clk 0:00:15]} 46. b6 {[%clk 0:00:41]}  Nf6+ {[%clk 0:00:15]} 47. Kd4 {[%clk 0:00:36]}  Bc8 {[%clk 0:00:16]} 48. Be7 {[%clk 0:00:34]}  Nxd5 {[%clk 0:00:11]} 49. Kxd5 {[%clk 0:00:31]}  h5 {[%clk 0:00:12]} 50. Kd6 {[%clk 0:00:31]}  Kf7 {[%clk 0:00:11]} 51. Kc7 {[%clk 0:00:31]}  Ba6 {[%clk 0:00:11]} 52. Bg5 {[%clk 0:00:30]}  Ke6 {[%clk 0:00:11]} 53. Bd7+ {[%clk 0:00:28]}  Kd5 {[%clk 0:00:10]} 54. Bc8 {[%clk 0:00:28]} 1-0


[Site "https://www.chess.com"]

[Event "Titled Tuesday Blitz March 21 Early 2023"]
[White "Bolourchifard, Farzad"]
[Black "Naroditsky, Daniel"]
[WhiteFideId "12510084"]
[BlackFideId "2026961"]
[WhiteElo "2317"]
[BlackElo "2633"]
[Result "0-1"]
[Round "11"]
[TimeControl "180+2"]
[Date "2023.03.21"]
[WhiteClock "0:00:01"]
[BlackClock "0:01:24"]

1. e4 {[%clk 0:02:50]}  c5 {[%clk 0:02:59]} 2. Nc3 {[%clk 0:02:50]}  a6 {[%clk 0:02:59]} 3. g3 {[%clk 0:02:50]}  b5 {[%clk 0:02:58]} 4. Bg2 {[%clk 0:02:51]}  Bb7 {[%clk 0:02:58]} 5. d3 {[%clk 0:02:51]}  e6 {[%clk 0:02:58]} 6. Nge2 {[%clk 0:02:51]}  Nf6 {[%clk 0:02:59]} 7. O-O {[%clk 0:02:51]}  d6 {[%clk 0:02:59]} 8. Be3 {[%clk 0:02:49]}  Nbd7 {[%clk 0:02:58]} 9. h3 {[%clk 0:02:49]}  Qc7 {[%clk 0:02:57]} 10. Qd2 {[%clk 0:02:50]}  Be7 {[%clk 0:02:57]} 11. a3 {[%clk 0:02:50]}  O-O {[%clk 0:02:55]} 12. f4 {[%clk 0:02:50]}  d5 {[%clk 0:02:54]} 13. exd5 {[%clk 0:02:50]}  Nxd5 {[%clk 0:02:51]} 14. Nxd5 {[%clk 0:02:50]}  Bxd5 {[%clk 0:02:52]} 15. Bxd5 {[%clk 0:02:50]}  exd5 {[%clk 0:02:53]} 16. d4 {[%clk 0:02:51]}  Nf6 {[%clk 0:02:51]} 17. Rad1 {[%clk 0:02:20]}  Ne4 {[%clk 0:02:42]} 18. Qe1 {[%clk 0:02:20]}  cxd4 {[%clk 0:02:42]} 19. Nxd4 {[%clk 0:02:20]}  Bf6 {[%clk 0:02:42]} 20. c3 {[%clk 0:01:55]}  Rfe8 {[%clk 0:02:39]} 21. Rf3 {[%clk 0:01:43]}  Qc4 {[%clk 0:02:34]} 22. Qf1 {[%clk 0:01:39]}  Rad8 {[%clk 0:02:28]} 23. Qxc4 {[%clk 0:01:30]}  dxc4 {[%clk 0:02:29]} 24. g4 {[%clk 0:01:29]}  h6 {[%clk 0:02:17]} 25. Re1 {[%clk 0:01:01]}  Nc5 {[%clk 0:02:11]} 26. Kf1 {[%clk 0:00:49]}  Nd3 {[%clk 0:02:08]} 27. Re2 {[%clk 0:00:49]}  Re4 {[%clk 0:02:01]} 28. Nc6 {[%clk 0:00:27]}  Rde8 {[%clk 0:01:56]} 29. Nb4 {[%clk 0:00:28]}  Nxb2 {[%clk 0:01:53]} 30. Rxb2 {[%clk 0:00:27]}  Rxe3 {[%clk 0:01:51]} 31. Rxe3 {[%clk 0:00:27]}  Rxe3 {[%clk 0:01:52]} 32. Nxa6 {[%clk 0:00:28]}  Rxc3 {[%clk 0:01:48]} 33. Rxb5 {[%clk 0:00:29]}  Rxa3 {[%clk 0:01:48]} 34. Nc5 {[%clk 0:00:26]}  c3 {[%clk 0:01:48]} 35. Nd7 {[%clk 0:00:26]}  Be7 {[%clk 0:01:42]} 36. Rb8+ {[%clk 0:00:23]}  Kh7 {[%clk 0:01:43]} 37. Rc8 {[%clk 0:00:21]}  h5 {[%clk 0:01:38]} 38. Ke2 {[%clk 0:00:17]}  h4 {[%clk 0:01:35]} 39. Ne5 {[%clk 0:00:17]}  c2 {[%clk 0:01:29]} 40. Nxf7 {[%clk 0:00:16]}  Rxh3 {[%clk 0:01:24]} 41. Rxc2 {[%clk 0:00:15]}  Rh2+ {[%clk 0:01:23]} 42. Kd3 {[%clk 0:00:15]}  Rxc2 {[%clk 0:01:24]} 43. Kxc2 {[%clk 0:00:16]}  h3 {[%clk 0:01:25]} 44. Ne5 {[%clk 0:00:01]}  h2 {[%clk 0:01:24]} 0-1


[Site "https://www.chess.com"]

[Event "Titled Tuesday Blitz March 21 Early 2023"]
[White "Nogerbek, Kazybek"]
[Black "Deac, Bogdan-Daniel"]
[WhiteFideId "13710427"]
[BlackFideId "1226380"]
[WhiteElo "2501"]
[BlackElo "2649"]
[Result "0-1"]
[Round "11"]
[TimeControl "180+2"]
[Date "2023.03.21"]
[WhiteClock "0:00:04"]
[BlackClock "0:00:04"]

1. d4 {[%clk 0:03:00]}  Nf6 {[%clk 0:02:59]} 2. c4 {[%clk 0:03:01]}  e6 {[%clk 0:02:59]} 3. Nf3 {[%clk 0:03:01]}  b6 {[%clk 0:02:59]} 4. a3 {[%clk 0:02:58]}  Bb7 {[%clk 0:02:56]} 5. Nc3 {[%clk 0:02:59]}  Ne4 {[%clk 0:02:57]} 6. Nxe4 {[%clk 0:02:55]}  Bxe4 {[%clk 0:02:57]} 7. Nd2 {[%clk 0:02:56]}  Bb7 {[%clk 0:02:57]} 8. e4 {[%clk 0:02:56]}  g6 {[%clk 0:02:57]} 9. Bd3 {[%clk 0:02:56]}  Bg7 {[%clk 0:02:57]} 10. Nf3 {[%clk 0:02:56]}  O-O {[%clk 0:02:57]} 11. O-O {[%clk 0:02:55]}  d6 {[%clk 0:02:52]} 12. Be3 {[%clk 0:02:55]}  Nd7 {[%clk 0:02:50]} 13. Qd2 {[%clk 0:02:55]}  f5 {[%clk 0:02:35]} 14. Bg5 {[%clk 0:02:39]}  Qe8 {[%clk 0:02:18]} 15. Rfe1 {[%clk 0:02:39]}  Qf7 {[%clk 0:02:17]} 16. Bh6 {[%clk 0:02:37]}  Rae8 {[%clk 0:01:54]} 17. d5 {[%clk 0:01:44]}  fxe4 {[%clk 0:00:59]} 18. Bxe4 {[%clk 0:01:42]}  Bxh6 {[%clk 0:00:46]} 19. Qxh6 {[%clk 0:01:43]}  exd5 {[%clk 0:00:46]} 20. cxd5 {[%clk 0:01:34]}  Nc5 {[%clk 0:00:41]} 21. Ng5 {[%clk 0:00:15]}  Qg7 {[%clk 0:00:39]} 22. Qxg7+ {[%clk 0:00:11]}  Kxg7 {[%clk 0:00:40]} 23. f3 {[%clk 0:00:08]}  Re5 {[%clk 0:00:31]} 24. Nh3 {[%clk 0:00:07]}  Rfe8 {[%clk 0:00:25]} 25. Red1 {[%clk 0:00:08]}  Nxe4 {[%clk 0:00:22]} 26. fxe4 {[%clk 0:00:09]}  Rxe4 {[%clk 0:00:23]} 27. Rac1 {[%clk 0:00:10]}  R8e7 {[%clk 0:00:22]} 28. Ng5 {[%clk 0:00:10]}  Re2 {[%clk 0:00:20]} 29. Ne6+ {[%clk 0:00:08]}  Kg8 {[%clk 0:00:06]} 30. b4 {[%clk 0:00:08]}  Bxd5 {[%clk 0:00:05]} 31. Nf4 {[%clk 0:00:08]}  Bb3 {[%clk 0:00:05]} 32. Nxe2 {[%clk 0:00:03]}  Bxd1 {[%clk 0:00:05]} 33. Nd4 {[%clk 0:00:04]}  Ba4 {[%clk 0:00:04]} 34. b5 {[%clk 0:00:04]}  Re4 {[%clk 0:00:05]} 35. Nc6 {[%clk 0:00:02]}  Bxb5 {[%clk 0:00:05]} 36. Nxa7 {[%clk 0:00:02]}  Bc4 {[%clk 0:00:05]} 37. Nc6 {[%clk 0:00:01]}  d5 {[%clk 0:00:06]} 38. Rd1 {[%clk 0:00:01]}  b5 {[%clk 0:00:05]} 39. Nb4 {[%clk 0:00:01]}  d4 {[%clk 0:00:05]} 40. Nc6 {[%clk 0:00:02]}  d3 {[%clk 0:00:06]} 41. Nb4 {[%clk 0:00:03]}  Rd4 {[%clk 0:00:05]} 42. Nc6 {[%clk 0:00:03]}  Rd6 {[%clk 0:00:05]} 43. Ne5 {[%clk 0:00:04]}  Rd5 {[%clk 0:00:04]} 44. Ng4 {[%clk 0:00:04]}  Kg7 {[%clk 0:00:03]} 45. Kf2 {[%clk 0:00:03]}  d2 {[%clk 0:00:03]} 46. Ne3 {[%clk 0:00:02]}  Rd3 {[%clk 0:00:02]} 47. Ke2 {[%clk 0:00:02]}  Rxa3+ {[%clk 0:00:02]} 48. Kf2 {[%clk 0:00:01]}  Rd3 {[%clk 0:00:01]} 49. Nf1 {[%clk 0:00:01]}  Rd4 {[%clk 0:00:02]} 50. Ne3 {[%clk 0:00:01]}  Bb3 {[%clk 0:00:02]} 51. Rb1 {[%clk 0:00:01]}  d1=Q {[%clk 0:00:03]} 52. Nxd1 {[%clk 0:00:02]}  Bxd1 {[%clk 0:00:03]} 53. Rxb5 {[%clk 0:00:03]}  Ba4 {[%clk 0:00:04]} 54. Rc5 {[%clk 0:00:03]}  Rd7 {[%clk 0:00:04]} 55. Ke3 {[%clk 0:00:04]}  Bd1 {[%clk 0:00:05]} 56. Rd5 {[%clk 0:00:04]}  Rxd5 {[%clk 0:00:04]} 0-1


[Site "https://www.chess.com"]

[Event "Titled Tuesday Blitz March 21 Early 2023"]
[White "Praggnanandhaa R"]
[Black "Averjanov, Alexey"]
[WhiteFideId "25059530"]
[BlackFideId "14109867"]
[WhiteElo "2623"]
[BlackElo "2826"]
[Result "1/2-1/2"]
[Round "11"]
[TimeControl "180+2"]
[Date "2023.03.21"]
[WhiteClock "0:00:09"]
[BlackClock "0:00:07"]

1. g3 {[%clk 0:03:00]}  c5 {[%clk 0:02:58]} 2. Bg2 {[%clk 0:03:00]}  Nc6 {[%clk 0:02:59]} 3. c4 {[%clk 0:02:58]}  g6 {[%clk 0:02:59]} 4. h4 {[%clk 0:02:57]}  h5 {[%clk 0:02:59]} 5. Nc3 {[%clk 0:02:56]}  Bg7 {[%clk 0:02:59]} 6. d3 {[%clk 0:02:57]}  e6 {[%clk 0:02:57]} 7. Nh3 {[%clk 0:02:55]}  Nge7 {[%clk 0:02:56]} 8. O-O {[%clk 0:02:55]}  O-O {[%clk 0:02:54]} 9. Bg5 {[%clk 0:02:55]}  d6 {[%clk 0:02:50]} 10. a3 {[%clk 0:02:55]}  Qd7 {[%clk 0:02:48]} 11. Rb1 {[%clk 0:02:54]}  b6 {[%clk 0:02:46]} 12. Qd2 {[%clk 0:02:50]}  Bb7 {[%clk 0:02:46]} 13. b4 {[%clk 0:02:50]}  Nd4 {[%clk 0:02:39]} 14. Bxb7 {[%clk 0:02:47]}  Qxb7 {[%clk 0:02:40]} 15. Ne4 {[%clk 0:02:47]}  Nef5 {[%clk 0:02:29]} 16. bxc5 {[%clk 0:02:45]}  dxc5 {[%clk 0:02:24]} 17. Nxc5 {[%clk 0:02:45]}  Qc6 {[%clk 0:02:15]} 18. Ne4 {[%clk 0:02:44]}  f6 {[%clk 0:02:04]} 19. Be3 {[%clk 0:02:44]}  e5 {[%clk 0:01:59]} 20. Bxd4 {[%clk 0:02:39]}  Nxd4 {[%clk 0:01:57]} 21. f4 {[%clk 0:02:40]}  f5 {[%clk 0:01:50]} 22. Neg5 {[%clk 0:02:39]}  Qd7 {[%clk 0:01:21]} 23. fxe5 {[%clk 0:02:35]}  Bxe5 {[%clk 0:01:19]} 24. Nf4 {[%clk 0:02:34]}  Rfe8 {[%clk 0:01:06]} 25. e3 {[%clk 0:02:32]}  Nc6 {[%clk 0:01:03]} 26. Nd5 {[%clk 0:02:30]}  Kg7 {[%clk 0:01:00]} 27. Qg2 {[%clk 0:02:26]}  Rad8 {[%clk 0:00:58]} 28. Rbe1 {[%clk 0:02:20]}  Qd6 {[%clk 0:00:56]} 29. Kh2 {[%clk 0:02:15]}  Qxa3 {[%clk 0:00:53]} 30. d4 {[%clk 0:02:12]}  Bb8 {[%clk 0:00:49]} 31. Nf4 {[%clk 0:01:50]}  Bxf4 {[%clk 0:00:41]} 32. Qxc6 {[%clk 0:01:50]}  Bxg5 {[%clk 0:00:37]} 33. hxg5 {[%clk 0:01:48]}  Re7 {[%clk 0:00:33]} 34. e4 {[%clk 0:01:42]}  fxe4 {[%clk 0:00:15]} 35. Rxe4 {[%clk 0:01:32]}  Rxe4 {[%clk 0:00:12]} 36. Qf6+ {[%clk 0:00:50]}  Kh7 {[%clk 0:00:12]} 37. Qxd8 {[%clk 0:00:50]}  Qe7 {[%clk 0:00:09]} 38. Qd5 {[%clk 0:00:49]}  Re2+ {[%clk 0:00:08]} 39. Kh3 {[%clk 0:00:49]}  Re6 {[%clk 0:00:07]} 40. c5 {[%clk 0:00:46]}  bxc5 {[%clk 0:00:07]} 41. dxc5 {[%clk 0:00:46]}  Kg7 {[%clk 0:00:05]} 42. Rb1 {[%clk 0:00:40]}  Re5 {[%clk 0:00:03]} 43. Qb7 {[%clk 0:00:39]}  Qxb7 {[%clk 0:00:03]} 44. Rxb7+ {[%clk 0:00:39]}  Kf8 {[%clk 0:00:04]} 45. c6 {[%clk 0:00:39]}  Rc5 {[%clk 0:00:03]} 46. c7 {[%clk 0:00:32]}  Ke8 {[%clk 0:00:03]} 47. g4 {[%clk 0:00:17]}  hxg4+ {[%clk 0:00:02]} 48. Kxg4 {[%clk 0:00:18]}  Rc4+ {[%clk 0:00:02]} 49. Kf3 {[%clk 0:00:18]}  a5 {[%clk 0:00:02]} 50. Ra7 {[%clk 0:00:15]}  Kd7 {[%clk 0:00:02]} 51. Rxa5 {[%clk 0:00:15]}  Kxc7 {[%clk 0:00:01]} 52. Ra7+ {[%clk 0:00:10]}  Kd6 {[%clk 0:00:01]} 53. Rg7 {[%clk 0:00:09]}  Ke5 {[%clk 0:00:02]} 54. Rxg6 {[%clk 0:00:09]}  Kf5 {[%clk 0:00:02]} 55. Rg8 {[%clk 0:00:09]}  Rc3+ {[%clk 0:00:02]} 56. Kf2 {[%clk 0:00:09]}  Rc2+ {[%clk 0:00:03]} 57. Kg3 {[%clk 0:00:10]}  Rc3+ {[%clk 0:00:03]} 58. Kh4 {[%clk 0:00:10]}  Rc7 {[%clk 0:00:03]} 59. Rf8+ {[%clk 0:00:05]}  Kg6 {[%clk 0:00:03]} 60. Rf6+ {[%clk 0:00:06]}  Kg7 {[%clk 0:00:04]} 61. Ra6 {[%clk 0:00:06]}  Rb7 {[%clk 0:00:04]} 62. Kh5 {[%clk 0:00:06]}  Rc7 {[%clk 0:00:04]} 63. Rg6+ {[%clk 0:00:06]}  Kh7 {[%clk 0:00:05]} 64. Rd6 {[%clk 0:00:05]}  Kg7 {[%clk 0:00:05]} 65. Rd5 {[%clk 0:00:06]}  Kh7 {[%clk 0:00:06]} 66. g6+ {[%clk 0:00:06]}  Kg7 {[%clk 0:00:06]} 67. Kg5 {[%clk 0:00:07]}  Re7 {[%clk 0:00:06]} 68. Rf5 {[%clk 0:00:08]}  Rc7 {[%clk 0:00:06]} 69. Rf7+ {[%clk 0:00:09]}  Rxf7 {[%clk 0:00:06]} 70. gxf7 {[%clk 0:00:09]}  Kxf7 {[%clk 0:00:07]} 1/2-1/2


[Site "https://www.chess.com"]

[Event "Titled Tuesday Blitz March 21 Early 2023"]
[White "Durarbayli, Vasif"]
[Black "Seo, Jung Min"]
[WhiteFideId "13402935"]
[BlackFideId "1734687"]
[WhiteElo "2543"]
[BlackElo "2468"]
[Result "0-1"]
[Round "11"]
[TimeControl "180+2"]
[Date "2023.03.21"]
[WhiteClock "0:00:03"]
[BlackClock "0:00:35"]

1. e4 {[%clk 0:03:00]}  c5 {[%clk 0:02:59]} 2. Nf3 {[%clk 0:03:01]}  e6 {[%clk 0:02:59]} 3. d4 {[%clk 0:03:01]}  cxd4 {[%clk 0:03:00]} 4. Nxd4 {[%clk 0:03:02]}  Nc6 {[%clk 0:03:00]} 5. Nc3 {[%clk 0:03:02]}  Qc7 {[%clk 0:03:01]} 6. Be3 {[%clk 0:03:01]}  a6 {[%clk 0:03:01]} 7. Qf3 {[%clk 0:02:56]}  h5 {[%clk 0:03:01]} 8. O-O-O {[%clk 0:02:46]}  Nf6 {[%clk 0:03:00]} 9. Nxc6 {[%clk 0:02:42]}  bxc6 {[%clk 0:02:59]} 10. Bf4 {[%clk 0:02:37]}  e5 {[%clk 0:02:57]} 11. Bg5 {[%clk 0:02:37]}  Be7 {[%clk 0:02:57]} 12. Bc4 {[%clk 0:02:35]}  d5 {[%clk 0:02:39]} 13. exd5 {[%clk 0:02:34]}  Bg4 {[%clk 0:02:39]} 14. d6 {[%clk 0:02:09]}  Bxd6 {[%clk 0:02:35]} 15. Qd3 {[%clk 0:01:29]}  Bxd1 {[%clk 0:02:35]} 16. Bxf6 {[%clk 0:01:16]}  Bxc2 {[%clk 0:02:16]} 17. Qxc2 {[%clk 0:01:16]}  gxf6 {[%clk 0:02:15]} 18. Qf5 {[%clk 0:01:15]}  Be7 {[%clk 0:02:14]} 19. Ne4 {[%clk 0:01:15]}  Rh6 {[%clk 0:02:11]} 20. Rd1 {[%clk 0:00:48]}  Rd8 {[%clk 0:02:09]} 21. Rxd8+ {[%clk 0:00:44]}  Qxd8 {[%clk 0:02:09]} 22. Bxa6 {[%clk 0:00:42]}  h4 {[%clk 0:01:57]} 23. Qg4 {[%clk 0:00:30]}  Rg6 {[%clk 0:01:48]} 24. Qxh4 {[%clk 0:00:29]}  f5 {[%clk 0:01:48]} 25. Qh8+ {[%clk 0:00:28]}  Kd7 {[%clk 0:01:48]} 26. Qh3 {[%clk 0:00:23]}  Rg4 {[%clk 0:01:38]} 27. f3 {[%clk 0:00:18]}  Rf4 {[%clk 0:01:34]} 28. Nc3 {[%clk 0:00:10]}  Qb6 {[%clk 0:01:22]} 29. Bd3 {[%clk 0:00:07]}  Qe3+ {[%clk 0:01:19]} 30. Kc2 {[%clk 0:00:08]}  Qf2+ {[%clk 0:01:11]} 31. Ne2 {[%clk 0:00:08]}  Kc7 {[%clk 0:00:54]} 32. Qg3 {[%clk 0:00:09]}  Qc5+ {[%clk 0:00:53]} 33. Nc3 {[%clk 0:00:07]}  Bd6 {[%clk 0:00:45]} 34. Qg8 {[%clk 0:00:04]}  e4 {[%clk 0:00:35]} 35. Qxf7+ {[%clk 0:00:03]}  Be7 {[%clk 0:00:35]} 0-1


[Site "https://www.chess.com"]

[Event "Titled Tuesday Blitz March 21 Early 2023"]
[White "Domingo Nunez, Ruben"]
[Black "Chigaev, Maksim"]
[WhiteFideId "22245570"]
[BlackFideId "4108116"]
[WhiteElo "2404"]
[BlackElo "2547"]
[Result "0-1"]
[Round "11"]
[TimeControl "180+2"]
[Date "2023.03.21"]
[WhiteClock "0:00:12"]
[BlackClock "0:00:20"]

1. b3 {[%clk 0:02:47]}  d5 {[%clk 0:02:56]} 2. Bb2 {[%clk 0:02:48]}  c6 {[%clk 0:02:56]} 3. Nf3 {[%clk 0:02:48]}  Nf6 {[%clk 0:02:57]} 4. e3 {[%clk 0:02:49]}  Bg4 {[%clk 0:02:56]} 5. Be2 {[%clk 0:02:50]}  Nbd7 {[%clk 0:02:56]} 6. h3 {[%clk 0:02:50]}  Bxf3 {[%clk 0:02:56]} 7. Bxf3 {[%clk 0:02:51]}  e6 {[%clk 0:02:57]} 8. d3 {[%clk 0:02:51]}  Bd6 {[%clk 0:02:58]} 9. Nd2 {[%clk 0:02:52]}  Qe7 {[%clk 0:02:58]} 10. O-O {[%clk 0:02:53]}  O-O-O {[%clk 0:02:54]} 11. c4 {[%clk 0:02:53]}  h5 {[%clk 0:02:51]} 12. a3 {[%clk 0:02:48]}  g5 {[%clk 0:02:49]} 13. Be2 {[%clk 0:02:33]}  g4 {[%clk 0:02:47]} 14. h4 {[%clk 0:02:14]}  g3 {[%clk 0:02:45]} 15. f4 {[%clk 0:02:15]}  Ng4 {[%clk 0:02:38]} 16. Bxh8 {[%clk 0:02:03]}  Nxe3 {[%clk 0:02:32]} 17. Qe1 {[%clk 0:02:03]}  Rxh8 {[%clk 0:02:16]} 18. Qxg3 {[%clk 0:02:03]}  Nf5 {[%clk 0:01:51]} 19. Qh3 {[%clk 0:01:56]}  Rg8 {[%clk 0:01:51]} 20. Rf3 {[%clk 0:01:39]}  Qf6 {[%clk 0:01:33]} 21. Raf1 {[%clk 0:01:36]}  Qb2 {[%clk 0:01:29]} 22. Rd1 {[%clk 0:01:32]}  Nf6 {[%clk 0:01:24]} 23. b4 {[%clk 0:00:26]}  Ng4 {[%clk 0:01:09]} 24. c5 {[%clk 0:00:27]}  Qd4+ {[%clk 0:01:08]} 25. Kh1 {[%clk 0:00:25]}  Bxf4 {[%clk 0:01:05]} 26. Nf1 {[%clk 0:00:15]}  Nf2+ {[%clk 0:01:02]} 27. Rxf2 {[%clk 0:00:16]}  Qxf2 {[%clk 0:01:03]} 28. Bxh5 {[%clk 0:00:16]}  Rg3 {[%clk 0:00:48]} 29. Nxg3 {[%clk 0:00:16]}  Nxg3+ {[%clk 0:00:48]} 30. Kh2 {[%clk 0:00:17]}  Nxh5+ {[%clk 0:00:49]} 31. Kh1 {[%clk 0:00:17]}  Ng3+ {[%clk 0:00:40]} 32. Kh2 {[%clk 0:00:17]}  Qe2 {[%clk 0:00:38]} 33. Rb1 {[%clk 0:00:11]}  Qxd3 {[%clk 0:00:24]} 34. Qg4 {[%clk 0:00:12]}  Nh5+ {[%clk 0:00:19]} 35. g3 {[%clk 0:00:12]}  Bxg3+ {[%clk 0:00:19]} 36. Kg2 {[%clk 0:00:12]}  Nf4+ {[%clk 0:00:20]} 0-1


[Site "https://www.chess.com"]

[Event "Titled Tuesday Blitz March 21 Early 2023"]
[White "Carlsen, Magnus"]
[Black "Idani, Pouya"]
[WhiteFideId "1503014"]
[BlackFideId "12510130"]
[WhiteElo "2852"]
[BlackElo "2574"]
[Result "1-0"]
[Round "11"]
[TimeControl "180+2"]
[Date "2023.03.21"]
[WhiteClock "0:01:15"]
[BlackClock "0:00:58"]

1. e4 {[%clk 0:03:00]}  c5 {[%clk 0:02:47]} 2. Nf3 {[%clk 0:02:58]}  d6 {[%clk 0:02:47]} 3. d4 {[%clk 0:02:58]}  cxd4 {[%clk 0:02:48]} 4. Nxd4 {[%clk 0:02:58]}  Nf6 {[%clk 0:02:46]} 5. Nc3 {[%clk 0:02:59]}  Nc6 {[%clk 0:02:47]} 6. f3 {[%clk 0:02:55]}  e5 {[%clk 0:02:46]} 7. Nb3 {[%clk 0:02:55]}  Be6 {[%clk 0:02:45]} 8. Nd5 {[%clk 0:02:51]}  Be7 {[%clk 0:02:41]} 9. c4 {[%clk 0:02:47]}  O-O {[%clk 0:02:40]} 10. Be3 {[%clk 0:02:46]}  Nd7 {[%clk 0:02:39]} 11. Nxe7+ {[%clk 0:02:42]}  Qxe7 {[%clk 0:02:39]} 12. Qd2 {[%clk 0:02:42]}  Nc5 {[%clk 0:02:32]} 13. Rd1 {[%clk 0:02:37]}  Rad8 {[%clk 0:02:29]} 14. Be2 {[%clk 0:02:36]}  b6 {[%clk 0:02:14]} 15. O-O {[%clk 0:02:36]}  f5 {[%clk 0:02:14]} 16. Bg5 {[%clk 0:02:33]}  Nxb3 {[%clk 0:02:09]} 17. axb3 {[%clk 0:02:31]}  Rf6 {[%clk 0:02:00]} 18. exf5 {[%clk 0:02:26]}  Bf7 {[%clk 0:01:52]} 19. Bd3 {[%clk 0:02:23]}  Nd4 {[%clk 0:01:49]} 20. Rfe1 {[%clk 0:02:05]}  Rf8 {[%clk 0:01:36]} 21. Be4 {[%clk 0:01:56]}  Rd8 {[%clk 0:01:22]} 22. Qe3 {[%clk 0:01:27]}  d5 {[%clk 0:00:59]} 23. Bxd5 {[%clk 0:01:20]}  Bxd5 {[%clk 0:00:58]} 24. Rxd4 {[%clk 0:01:15]} 1-0


[Site "https://www.chess.com"]